Cogmind - Beta 17 @@@ ROGUE MODE // 2026.07.28 @ 09:17:24 Player: gortmind Result: Destroyed by D2-NP7(R) with Subdweller Machine Gun Performance ------------- Evolutions (0) 0 Regions Visited (3) 600 Robots Destroyed (22) 110 Value Destroyed (478) 478 Prototype IDs (0) 0 Alien Tech Used (0) 0 Bonus (0) 0 TOTAL SCORE: 1188 Bonus ------- None Cogmind --------- Core Integrity 0/250 Matter 294/300 Energy 500/500 System Corruption 2% Temperature Cool (0) Movement Walking (190) Ox1 Location -10/Subcaves Parts ------- > --- POWER (1) -------- Ion Engine > --- PROPULSION (2) --- Aluminum Leg Aluminum Leg > --- UTILITY (2) ------ Medium Storage Unit High-capacity Battery > --- WEAPON (2) ------- Beam Rifle > --- INVENTORY (10) --- Small Storage Unit Experimental Sensor Array Signal Interpreter Core Shielding Peak State ------------ > --- POWER ------------ Ion Engine > --- PROPULSION ------- Wheel Compact Wheel > --- UTILITY ---------- Medium Storage Unit High-capacity Battery > --- WEAPON ----------- Beam Rifle Plasma Flamer > --- INVENTORY -------- Aluminum Leg Aluminum Leg Small Storage Unit Experimental Sensor Array Signal Interpreter Signal Interpreter Core Shielding Medium Laser [Rating: 13] Favorites ----------- Power Ion Engine Engine Ion Engine Propulsion Compact Wheel Leg Aluminum Leg Wheel Compact Wheel Utility Medium Storage Unit Storage Medium Storage Unit Processor Signal Interpreter Protection Core Shielding Weapon Medium Laser Energy Gun Medium Laser Energy Cannon Beam Cannon Ballistic Gun Assault Rifle Special Weapon Plasma Flamer Build | -11 -10 -10 -10 ------- Run | Yrd Mat Min Sub Slots Evolved . | . . . . Power . | . . . . Propulsion . | . . . . Utility . | . . . . Weapon . | . . . . Parts Attached 19 | 4 8 5 2 Power 2 | 1 . 1 . Engine 2 | 1 . 1 . Core . | . . . . Reactor . | . . . . Propulsion 5 | . 3 . 2 Treads . | . . . . Leg 2 | . . . 2 Wheel 3 | . 3 . . Hover . | . . . . Flight . | . . . . Utility 6 | 1 4 1 . Device . | . . . . Storage 3 | 1 2 . . Processor 2 | . 1 1 . Hackware . | . . . . Protection 1 | . 1 . . Artifact . | . . . . Weapon 6 | 2 1 3 . Energy Gun 3 | 1 1 1 . Energy Cannon 1 | . . 1 . Ballistic Gun 1 | 1 . . . Ballistic Cannon . | . . . . Launcher . | . . . . Special Weapon 1 | . . 1 . Impact Weapon . | . . . . Slashing Weapon . | . . . . Piercing Weapon . | . . . . Special Melee Weapon . | . . . . Unidentified Prototypes . | . . . . Parts Lost 7 | . 1 2 4 Power 1 | . 1 . . Propulsion 3 | . . 1 2 Utility . | . . . . Weapon 3 | . . 1 2 Highest Loss Streak 3 | . 1 1 3 To Critical Strikes . | . . . . Average Backups 7 | 5 7 9 4 Power . | . 1 . . Propulsion 3 | 3 4 3 . Utility 3 | . 1 4 4 Weapon . | . . . . Tool/Special . | . . . . Unused Backups 4 | . 1 2 1 Power . | . . . . Propulsion 2 | . . 2 . Utility 1 | . . . 1 Weapon 1 | . 1 . . Tool/Special . | . . . . Average Slot Usage (%) 87 | . 91 76 97 Engine 7 | . 8 2 14 Leg 4 | . . . 19 Wheel 18 | . 26 17 7 Storage 26 | . 24 27 28 Energy Gun 21 | . 27 13 22 Energy Cannon 1 | . . 4 . Special Weapon 4 | . . 9 3 Peak Build Rating 13 | 4 7 13 13 Average Rating 8 | 3 6 9 9 On Entrance 6 | . 4 7 13 Avg Prop Armor Cover (%) . | . . . . Naked Turns . | . . . . Heaviest Build 25 | 12 20 25 25 Greatest Support 32 | 3 32 32 26 Greatest Overweight (x) 3 | 3 3 1 1 Average Overweight (x) . | 1 . . . Largest Inventory Capacity 10 | 8 10 10 10 Average Capacity 9 | 7 9 10 10 Most Carried 10 | 8 10 10 7 Average Carried 7 | 5 7 9 4 Final Capacity 10 | 8 10 10 10 Final Carried 10 | 8 10 8 4 Class Distribution -------------------- 100% | Mutant Dominant Class ---------------- Mutant | -10/Materials Mutant | -10/Mines Mutant | -10/Subcaves Resources | -11 -10 -10 -10 ----------- Run | Yrd Mat Min Sub Matter Collected 417 | 105 210 20 82 Remotely . | . . . . Salvage Created 578 | . 286 209 83 Parts 40 | . 20 17 3 Haulers Intercepted 2 | . 2 . . Recyclers Shooed . | . . . . Parts Field Recycled . | . . . . Retrieved Matter . | . . . . Parts Self-Destructed 3 | . . . 3 Prevented . | . . . . Parts Restored . | . . . . Kills | -11 -10 -10 -10 ------- Run | Yrd Mat Min Sub Combat Hostiles Destroyed 19 | . 8 9 2 Guns 12 | . 7 3 2 Cannons 5 | . . 5 . Classes Destroyed 5 | . 3 2 . Tunneler 1 | . . 1 . Hauler 2 | . 2 . . Swarmer 10 | . 5 5 . Grunt 7 | . 3 2 2 Sentry 2 | . . 2 . Best Kill Streak 4 | . 4 3 2 Combat Bots Only 4 | . 4 3 2 Max Kills in Single Turn 2 | . 1 2 1 Gunslinging 1 | . . 1 . Exploded . | . . . . Melee . | . . . . Uniques/NPCs Destroyed . | . . . . Combat | -11 -10 -10 -10 -------- Run | Yrd Mat Min Sub Hostile Shots Fired 102 | . 27 34 41 Missed 30 | . 8 14 8 Hits 72 | . 19 20 33 Projectile 72 | . 19 20 33 Critical Strikes 1 | . 1 . . Damage Taken 1000 | . 207 238 555 Core 258 | . 34 40 184 Absorbed by Shields . | . . . . Core Remaining (%) 100 | 100 . . . Volleys Fired 78 | . 31 18 29 Largest 2 | . 2 2 2 Hottest 160 | . 90 160 156 Shots Fired 131 | . 62 33 36 Gun 108 | . 62 11 35 Cannon 8 | . . 8 . Launcher . | . . . . Special 15 | . . 14 1 Kinetic . | . . . . Thermal 131 | . 62 33 36 Explosive . | . . . . Electromagnetic . | . . . . Robot Hit Streak 12 | . 7 12 7 Robot Miss Streak 5 | . 5 5 3 Penetration Max . | . . . . Secondary Targets 2 | . 1 1 . Max Gunslinging Chain 1 | . 1 1 . Shots Hit Robots 84 | . 36 21 27 Core Hits 34 | . 15 14 5 Critical Kills . | . . . . Critical Parts Destroyed . | . . . . Critical Strikes 4 | . 2 . 2 Burn 4 | . 2 . 2 Melee Attacks . | . . . . Impact . | . . . . Slashing . | . . . . Piercing . | . . . . Sneak Attacks . | . . . . Combat Hostiles . | . . . . Follow-up Attacks . | . . . . Damage Inflicted 858 | . 412 313 133 Guns 578 | . 412 47 119 Cannons 123 | . . 123 . Explosions . | . . . . Melee . | . . . . Ramming . | . . . . Kinetic . | . . . . Thermal 858 | . 412 313 133 Explosive . | . . . . Electromagnetic . | . . . . Impact . | . . . . Slashing . | . . . . Piercing . | . . . . Highest Corruption 2 | . 2 2 2 Average Corruption 2 | . 2 2 2 Corruption Purged . | . . . . Corruption Blocked . | . . . . Effects 21 | . . 11 10 Message Errors 2 | . . 2 . Matter Fused 1 | . . 1 . Heat Flow Errors 4 | . . 1 3 Energy Discharges 5 | . . 2 3 Parts Rejected 1 | . . . 1 Data Loss (minor) 4 | . . 3 1 Misfires 1 | . . 1 . Alerts 1 | . . . 1 Weapon Failures 2 | . . 1 1 Overload Shots . | . . . . Overflow Damage . | . . . . Projectiles . | . . . . Explosions . | . . . . Melee . | . . . . Knockbacks . | . . . . Impact . | . . . . Kinetic . | . . . . Secondary . | . . . . Self-Inflicted Damage . | . . . . Shots . | . . . . Rammed . | . . . . Targets Rammed . | . . . . Kicked . | . . . . Crushed . | . . . . Highest Temperature 415 | . 183 415 224 Average Temperature 88 | . 64 123 79 Received Heat Transfer 282 | . 105 90 87 Effects 2 | . . 2 . Interference 2 | . . 2 . Siege Activations . | . . . . Martial Activations . | . . . . Shielding Activations . | . . . . Robots Disrupted . | . . . . Combat Hostiles . | . . . . Robots Corrupted . | . . . . Combat Hostiles . | . . . . Parts Fried . | . . . . Impact Corruptions . | . . . . Robots Melted 2 | . 1 1 . Combat Hostiles 2 | . 1 1 . Parts Melted 7 | . 3 3 1 Heat Transferred 3114 | . 1204 1263 647 Parts Sabotaged . | . . . . Parts Stolen . | . . . . Parts Stripped . | . . . . Power Chain Reactions . | . . . . Alert | -11 -10 -10 -10 ------- Run | Yrd Mat Min Sub Maximum Alert Level . | . . . . Low Security (%) 100 | 100 100 100 . Level 1 . | . . . . Level 2 . | . . . . Level 3 . | . . . . Level 4 . | . . . . Level 5 . | . . . . High Security . | . . . . Max Security . | . . . . Peak Influence 143 | . 143 80 . Initial 10 | . . 10 . Average 29 | . 46 17 . Influence Increases 538 | . 243 245 50 Destroy 0b10 Robot/C 380 | . 160 180 40 Destroy 0b10 Robot/NC 15 | . 10 5 . Destroy Leader 74 | . 34 30 10 Successful Hack 24 | . 24 . . Lose Combat Pursuer 45 | . 15 30 . Influence Decreases 538 | . 214 274 50 Entered New Map 19 | . . 19 . Time Decay 479 | . 204 235 40 Lost Part 40 | . 10 20 10 Squads Dispatched . | . . . . Investigation . | . . . . Extermination . | . . . . Reinforcement . | . . . . Assault . | . . . . Garrison . | . . . . Intercept . | . . . . Searches Triggered . | . . . . Construction Impeded . | . . . . Haulers Reinforced . | . . . . Active Scanning Responses . | . . . . Cargo Convoy Interrupts . | . . . . Stealth | -11 -10 -10 -10 --------- Run | Yrd Mat Min Sub Distress Signals . | . . . . Communications Jammed . | . . . . Distress Signals . | . . . . Times Spotted 24 | . 11 10 3 Peak Tracking Total 5 | . 5 3 2 Tactical Retreats 2 | . 1 1 . Traps | -11 -10 -10 -10 ------- Run | Yrd Mat Min Sub Traps Triggered 1 | . 1 . . Indirectly . | . . . . Trap Hack Attempts . | . . . . Triggered . | . . . . Disarmed . | . . . . Reprogrammed . | . . . . Reused . | . . . . Traps Extracted . | . . . . Installed . | . . . . Triggered . | . . . . Machines | -11 -10 -10 -10 ---------- Run | Yrd Mat Min Sub Machines Disabled . | . . . . Max in Single Turn . | . . . . Machines Repaired . | . . . . Machines Dismantled . | . . . . Machines Sabotaged . | . . . . Overloaded Fab Kills . | . . . . Hacking | -11 -10 -10 -10 --------- Run | Yrd Mat Min Sub Machines Accessed 7 | . 7 . . Terminals 6 | . 6 . . Fabricators . | . . . . Repair Stations . | . . . . Recycling Units 1 | . 1 . . Scanalyzers . | . . . . Garrison Access . | . . . . Total Hacks 23 | . 23 . . Successful 8 | . 8 . . Failed 15 | . 15 . . Catastrophic 2 | . 2 . . Database Lockouts . | . . . . Manual . | . . . . Terminals 19 | . 19 . . Fabricators . | . . . . Repair Stations . | . . . . Recycling Units 4 | . 4 . . Scanalyzers . | . . . . Garrison Access . | . . . . Terminal Hacks 7 | . 7 . . Level Access Points 1 | . 1 . . Branch Access Points 1 | . 1 . . Alert Level 1 | . 1 . . Locate Traps 3 | . 3 . . Zone Layout 1 | . 1 . . Fabricator Hacks . | . . . . Repair Station Hacks . | . . . . Recycling Unit Hacks 1 | . 1 . . Report Inventory 1 | . 1 . . Scanalyzer . | . . . . Garrison Access Hacks . | . . . . Unauthorized Hacks . | . . . . Terminals . | . . . . Fabricators . | . . . . Repair Stations . | . . . . Recycling Units . | . . . . Scanalyzers . | . . . . Garrison Access . | . . . . Data Cores Recovered . | . . . . Used . | . . . . Hacking Detections 7 | . 7 . . Full Trace Events . | . . . . Feedback Events . | . . . . Feedback Blocked . | . . . . Robot Schematics Acquired . | . . . . Robots Built . | . . . . Authchips . | . . . . Time . | . . . . Total Robot Build Rating . | . . . . Part Schematics Acquired . | . . . . Parts Built . | . . . . Authchips . | . . . . Time . | . . . . Total Part Build Rating . | . . . . Part Studies Acquired . | . . . . Parts Repaired . | . . . . Time . | . . . . Parts Recycled . | . . . . Recycled Matter . | . . . . Retrieved Matter . | . . . . Retrieved Components . | . . . . Parts Scanalyzed . | . . . . Part Schematics Acquired . | . . . . Parts Damaged . | . . . . Bothacking | -11 -10 -10 -10 ------------ Run | Yrd Mat Min Sub Used RIF Installer . | . . . . Robots Hacked . | . . . . Non-combat . | . . . . Combat . | . . . . Robot Hacks Applied . | . . . . Relay Couplers Released . | . . . . Fabnet Peak Effective % . | . . . . Robots Rewired . | . . . . Allies Hacked . | . . . . Hacks Repelled . | . . . . Allies | -11 -10 -10 -10 -------- Run | Yrd Mat Min Sub Total Allies . | . . . . Largest Group . | . . . . Highest-Rated Group . | . . . . Highest-Rated Ally . | . . . . Total Orders . | . . . . Ally Attacks . | . . . . Total Damage . | . . . . Kills . | . . . . Allies Corrupted . | . . . . Allies Melted . | . . . . Intel | -11 -10 -10 -10 ------- Run | Yrd Mat Min Sub Active Infowar (turns) . | . . . . Robot Analysis Total . | . . . . Derelict Logs Recovered 3 | . . 2 1 Drone Launches . | . . . . Drone Recoveries . | . . . . Exploration | -11 -10 -10 -10 ------------- Run | Yrd Mat Min Sub Turns Passed 2280 | 116 805 821 538 Spaces Moved 1635 | 70 694 564 307 Core 79 | 70 9 . . Treads . | . . . . Legs 178 | . . . 178 Wheels 1378 | . 685 564 129 Hover . | . . . . Flight . | . . . . Fastest Speed 50 | 50 90 90 90 Average Speed 111 | 145 94 108 147 Slowest Speed 200 | 200 200 115 190 Overloaded Moves . | . . . . Propulsion Burnouts . | . . . . Robots Hopped . | . . . . Potential Cave-ins . | . . . . Cave-ins Triggered . | . . . . Exploration Rate (%) 51 | 4 83 97 23 Regions Visited 3 Branch Regions 2 Pre-discovered Areas 2 | . . 1 1 Known Exits Taken 2 | . 1 1 . Unknown Exits Taken 1 | 1 . . . Scrap Searched 2 | . . 2 . Spaces Dug . | . . . . Terrain Destroyed . | . . . . Melee . | . . . . Projectile . | . . . . AOE . | . . . . Terrain Rammed . | . . . . Walls Destroyed . | . . . . Machines Disabled . | . . . . Actions | -11 -10 -10 -10 --------- Run | Yrd Mat Min Sub Total 1950 | 85 782 731 352 Wait 186 | . 40 136 10 Move 1632 | 69 693 563 307 Hop . | . . . . Pick Up 25 | 12 8 4 1 Fast Attach . | . . . . Attach 14 | 4 3 3 4 Detach . | . . . . Swap 10 | . 5 4 1 Drop 5 | . 2 3 . Fire 78 | . 31 18 29 Melee . | . . . . Ram . | . . . . Kick . | . . . . Crush . | . . . . Escape Stasis . | . . . . Rewire . | . . . . Trap . | . . . . Miscellaneous . | . . . . Route ------- -11/Scrapyard -10/Materials (discovered 4 exits: *Mat x3 / *Min) -10/Mines (discovered 4 exits: *Mat x2 / *Exi / *Sub) -10/Subcaves (discovered 1 exit: [*Mat]) History --------- Turn | Location | Event 38 | -11/Scrapyard | Discovered new exit (range 16) 117 | -11/Scrapyard | Entered Materials 305 | -10/Materials | Build established: Mutant 445 | -10/Materials | Discovered new exit (range 7) 513 | -10/Materials | Discovered new exit (range 15) 662 | -10/Materials | Discovered new exit (range 4) 670 | -10/Materials | Identified exit to Mines 670 | -10/Materials | Identified exit to Materials 922 | -10/Materials | Entered Mines 938 | -10/Mines | Met a Derelict bent on vengeance 1135 | -10/Mines | Learned Materials stockpile data 1146 | -10/Mines | A weapon hastily lodged in a ceiling crevice suddenly fell to the ground 1179 | -10/Mines | Learned location of Storage (-9) 1180 | -10/Mines | Discovered exit to Materials (range 9) 1250 | -10/Mines | Found a damaged Exp. Sensor Array with a note attached 1253 | -10/Mines | Found Prototype Device 1320 | -10/Mines | Found a hidden stash of uninstalled traps 1546 | -10/Mines | Learned Materials trap positions 1555 | -10/Mines | Deemed a non-threat by the Exiles lab entrance 1555 | -10/Mines | Discovered new exit (range 5) 1686 | -10/Mines | Discovered exit to Materials (range 5) 1690 | -10/Mines | Discovered new exit (range 10) 1699 | -10/Mines | Identified exit to Subcaves 1720 | -10/Mines | Identified exit to Exiles 1743 | -10/Mines | Entered Subcaves 1749 | -10/Subcaves | Discovered new exit (range 8) 1795 | -10/Subcaves | Learned location of Zion (-6) 1918 | -10/Subcaves | Lost 3 parts (2n1w) 2244 | -10/Subcaves | Core integrity fell below 50% 2264 | -10/Subcaves | Core integrity fell below 20% 2281 | -10/Subcaves | Destroyed by D2-NP7(R) with Subdweller Machine Gun Last Messages --------------- 01893_ System corrupted: Beam Rifle rejected. 01897_ G-34 Mercenary destroyed. 01902_ Acquired 42 matter. 01904_ Ion Engine fries itself beyond repair. 01910_ Acquired Beam Rifle. 01914_ Heat Sink fries itself beyond repair. 01919_ System corrupted: Heat flow error (+224). 01931_ 3R-6EG(O) collects matter. 01985_ System corrupted: Energy discharge (-170). 02015_ System corrupted: IFF burst signal emitted. 02062_ System corrupted: Energy discharge (-155). 02106_ System corrupted: Component data lost. 02125_ System corrupted: Energy discharge (-185). 02212_ System corrupted: Heat flow error (+253). 02241_ Med. Laser destroyed. 02264_ System corrupted: Heat flow error (+236). Map ----- +----------------------------------------------------+ | ??????????????????? #????????????? | | ????????????????????? #?????????????? | | ??????????????????????# #?????????????? | | ???????????????????????# #??????????????? | | ???????????????????????# #??????????????? | | ???????????????????????# #??????????????? | | ???????????????????????## ##??????????????? | | ????????????????????##?# #???????????????? | | ????????????????????# ### ##??????????????? | | ?????????????????????# #??????????????? | | ????????????????????## ####??????????????? | | ????????????????????# ##????????????????? | | ???????????????????### #????????????????? | | ???????????????????# # #????????????????? | | ???????????????????# #????????????????? | | ???????????????????# #????????????????? | | ???????????????????# ##???????????????? | | ??????????????????## ##??????????????? | | ?????????????????## #??????????????? | | ???????????????### #??????????????? | | ?????????????### #??????????????? | | ?????????????# #< #??????????????? | | ?????????????# ##??????????????? | | ?????????????# #R ## ### #???????????????? | | ???????????? "## ###?# ##??????????????? | | ???????????###?## @ ##?# #??????????????? | | ???????????????# ### #??????????????? | | ??????????????## #???????######?? | | ??????????????# ##??????## #?? | | ??????????????# ##??????# #?# | | ??????????????## ##?????# ### | | ???????????????# ##????# ## | | ???????????????# ####?# | | ???????????????# ### | | ???????????????## # # | | ????????????????## ### ## ##### | | ?????????????????###?## ### | | ??????????????????????###?# | | ?????????????????????????# # | | ????????????????????????# ### | | ????????????????????????## ### ######?? | | ?????????????????????????####?######??????? | | ??????????????????????????????????????????? | | ??????????????????????????????????????????? | | ??????????????????????????????????????????? | | ??????????????????????????????????????????? | | ??????????????????????????????????????????? | | ??????????????????????????????????????????? | | ??????????????????????????????????????????? | | ??????????????????????????????????????????? | +----------------------------------------------------+ Best States ------------- Heat Dissipation 25 Energy Generation 10 Energy Capacity 500 Matter Stores 300 Matter Capacity 300 Sight Range 16 Terrain Scan Density 10 Core Shielding 20 Evasion (%) 42 Item Schematics ----------------- None Robot Schematics ------------------ None Fabricated ------------ Nothing Repaired ---------- Nothing Studied --------- None Alien Tech Used ----------------- None Achievements -------------- None Challenges ------------ None Game ------ Seed LaunchRingMaul Manual? 0 Play Time 00:23:30 Cumulative 10.3 hours Start 2026.07.28 @ 08:51:29 End 2026.07.28 @ 09:17:24 Sessions 1 Manual Loads 0 Difficulty Rogue Special Mode None Game No. 12 Rogue 12 Adventurer 0 Explorer 0 Win Type - Total 0 Types 0/0/0/0/0/0/0/0/0/0 Lore% 11 Gallery% 11 Achievement% 14 Wizard Run 0 Options --------- Layout 1 ASCII 0 Keyboard 0 Movement Mouse Keybinds 0 Fullscreen 1 Font 48/Smallcaps Map View 50x35 Zoom Use 0% Tactical HUD 1 Map Filters NONE Filters NONE Steam 1 RUN: e6152b15-ff9a-487c-9203-e4ab151a0a03